fUST/lending_fUST_20260502
["ID","MTS","AMOUNT","RATE_DAILY","PERIOD"]
[421437373,1777651293000,-1050.91312664,0.00012514,2]
[421437377,1777651410000,200.0,0.00019846,120]
[421437378,1777651424000,200.883375,0.00021808,120]
[421437393,1777651531000,200.0,0.00021202,120]
[421437402,1777651727000,200.883375,0.00021808,120]
[421437411,1777651770000,200.0,0.00020865,120]
[421437453,1777651833000,-5000.0,0.00011547,2]
[421437457,1777651833000,-201.3889423,0.00011842,2]
[421437459,1777651833000,-6308.34319775,0.00013499,2]
[421437451,1777651833000,-1039.39767334,0.00011432,2]
[421437455,1777651833000,-3972.92798499,0.00011664,2]
[421437463,1777651833000,-169984.07425709,0.000135,2]
[421437465,1777651833000,-1621.10853901,0.000135,2]
[421437461,1777651833000,-25129.52291741,0.000135,2]
[421437495,1777651838000,-4773.43394479,0.000135,2]
[421437494,1777651838000,-17036.53059501,0.000135,2]
[421437493,1777651838000,-38614.99999999,0.000135,2]
[421437490,1777651838000,-746.86809144,0.000135,2]
[421437747,1777651843000,-261.0,0.000135,2]
[421437746,1777651843000,-2739.22395272,0.000135,2]
[421437749,1777651843000,-2499.67735365,0.000135,2]
[421437748,1777651843000,-5332.87250829,0.000135,2]
[421437750,1777651843000,-499.528,0.000135,2]
[421437751,1777651843000,-1126.90394658,0.000135,2]
[421437752,1777651843000,-4653.67113488,0.000135,2]
[421437768,1777651846000,-300.0,0.00013769,2]
[421437765,1777651846000,-300.0,0.00013769,2]
[421437764,1777651846000,-300.0,0.00013769,2]
[421437763,1777651846000,-300.0,0.00013769,2]
[421437767,1777651846000,-300.0,0.00013769,2]
[421437762,1777651846000,-300.0,0.00013769,2]
[421437766,1777651846000,-300.0,0.00013769,2]
[421437770,1777651846000,-300.0,0.00013769,2]
[421437761,1777651846000,-600.0,0.00013768,2]
[421437760,1777651846000,-1000.0,0.00013699,2]
[421437757,1777651846000,-1050.91312664,0.00013365,2]
[421437759,1777651846000,-1709.995476,0.00013699,2]
[421437756,1777651846000,-27952.91671815,0.000135,2]
[421437758,1777651846000,-13990.66804099,0.000135,2]
[421437780,1777651846000,-273.88896153,0.00015842,2]
[421437779,1777651846000,-720.0,0.00015145,2]
[421437772,1777651846000,-300.0,0.00013769,2]
[421437787,1777651846000,-160.0,0.00017601,2]
[421437785,1777651846000,-537.6845,0.00017556,2]
[421437783,1777651846000,-350.0,0.00017,2]
[421437786,1777651846000,-2150.738,0.00017556,2]
[421437781,1777651846000,-4904.567054,0.00016,2]
[421437782,1777651846000,-864.0,0.00016659,2]
[421437774,1777651846000,-300.0,0.00013769,2]
[421437784,1777651846000,-160.0,0.00017403,3]
[421437777,1777651846000,-237.63895191,0.00013842,2]
[421437775,1777651846000,-300.0,0.00013769,2]
[421437778,1777651846000,-240.666184,0.00015068,2]
[421437771,1777651846000,-300.0,0.00013769,2]
[421437773,1777651846000,-300.0,0.00013769,2]
[421437769,1777651846000,-300.0,0.00013769,2]
[421437776,1777651846000,-300.0,0.00013769,2]
[421437793,1777651847000,-442.0,0.00017731,2]
[421437789,1777651847000,-264.16679955,0.00017611,2]
[421437788,1777651847000,-160.0,0.00017601,2]
[421437791,1777651847000,-646.0,0.00017731,2]
[421437792,1777651847000,-185.0,0.00017731,2]
[421437790,1777651847000,-1410.0,0.00017731,2]
[421437794,1777651847000,-310.13897114,0.00017842,2]
[421437799,1777651847000,-419.67865061,0.00018325,2]
[421437796,1777651847000,-2230.315306,0.00018104,2]
[421437800,1777651847000,-369.04304607,0.00018325,2]
[421437802,1777651847000,-240.666184,0.00018493,2]
[421437803,1777651847000,-1854.30821684,0.00018652,2]
[421437795,1777651847000,-307.06925776,0.00018,2]
[421437798,1777651847000,-211.27830332,0.00018325,2]
[421437797,1777651847000,-160.0,0.00018145,4]
[421437801,1777651847000,-2209.0,0.00018378,2]
[421437844,1777652010000,200.0,0.00019092,120]
[421437845,1777652030000,200.883375,0.00021808,120]
[421437910,1777652523000,1003.97471498,0.0001,30]
[421437913,1777652545000,258.0,0.00019897,120]
[421437949,1777652776000,1573.0,0.00021918,120]
[421437953,1777652883000,157.0,7.17e-05,2]
[421437955,1777652928000,5000.0,8.01e-05,2]
[421437956,1777652936000,5000.0,8.01e-05,2]
[421437958,1777652945000,1605.97195052,8.01e-05,2]
[421437959,1777652953000,5000.0,8.01e-05,2]
[421437960,1777652960000,5000.0,8.01e-05,2]
[421437963,1777652976000,5000.0,8.01e-05,2]
[421437964,1777652983000,4641.4649,8.01e-05,2]
[421437966,1777652998000,5000.0,8.01e-05,2]
[421437967,1777653021000,4333.29098211,8.01e-05,2]
[421437968,1777653025000,151.0,7.925e-05,2]
[421438054,1777653041000,-300.0,0.00011223,2]
[421438061,1777653041000,-300.0,0.00011223,2]
[421438055,1777653041000,-300.0,0.00011223,2]
[421438063,1777653041000,-300.0,0.00011223,2]
[421438066,1777653041000,-300.0,0.00011223,2]
[421438065,1777653041000,-300.0,0.00011223,2]
[421438070,1777653041000,-300.0,0.00011223,2]
[421438051,1777653041000,-300.0,0.00011223,2]
[421438072,1777653041000,-300.0,0.00011223,2]
[421438076,1777653041000,-35599.81034595,0.00011223,2]
[421438078,1777653041000,-151.0,0.00011298,2]
[421438082,1777653041000,-324.79669525,0.0001217,2]
[421438068,1777653041000,-300.0,0.00011223,2]
[421438057,1777653041000,-300.0,0.00011223,2]
[421438026,1777653041000,-238.82109945,8.17e-05,2]
[421438059,1777653041000,-300.0,0.00011223,2]
[421438048,1777653041000,-300.0,0.00011223,2]
[421438046,1777653041000,-300.0,0.00011222,2]
[421438044,1777653041000,-1200.0,0.00011222,2]
[421438033,1777653041000,-152.0,9.438e-05,7]
[421438042,1777653041000,-300.0,0.00011222,2]
[421438028,1777653041000,-535.0,8.17e-05,2]
[421438031,1777653041000,-152.0,9.438e-05,7]
[421438037,1777653041000,-281.80889735,0.0001017,2]
[421438040,1777653041000,-300.0,0.00011222,2]
[421438035,1777653041000,-300.0,9.784e-05,8]
[421438038,1777653041000,-151.0,0.00010461,2]
[421438024,1777653041000,-169.48216805,8.17e-05,2]
[421438074,1777653041000,-300.0,0.00011223,2]
[421438049,1777653041000,-300.0,0.00011223,2]
[421438090,1777653041000,-364.0,0.00012329,2]
[421438086,1777653041000,-152.0,0.0001227,7]
[421438080,1777653041000,-600.0,0.00011446,2]
[421438084,1777653041000,-152.0,0.00012257,7]
[421438145,1777653041000,-500.0,0.00013849,2]
[421438129,1777653041000,-500.0,0.00013849,2]
[421438141,1777653041000,-500.0,0.00013849,2]
[421438125,1777653041000,-500.0,0.00013849,2]
[421438143,1777653041000,-275.78794122,0.00013849,2]
[421438127,1777653041000,-500.0,0.00013849,2]
[421438137,1777653041000,-500.0,0.00013849,2]
[421438139,1777653041000,-500.0,0.00013849,2]
[421438135,1777653041000,-500.0,0.00013849,2]
[421438133,1777653041000,-388.3869658,0.00013849,2]
[421438131,1777653041000,-500.0,0.00013849,2]
[421438121,1777653041000,-500.0,0.00013849,2]
[421438119,1777653041000,-500.0,0.00013849,2]
[421438106,1777653041000,-179.97115443,0.000129,2]
[421438123,1777653041000,-500.0,0.00013849,2]
[421438104,1777653041000,-151.0,0.00012663,2]
[421438088,1777653041000,-152.0,0.0001227,7]
[421438118,1777653041000,-1000.0,0.00013699,2]
[421438091,1777653041000,-420.0,0.00012329,2]
[421438093,1777653041000,-1680.0,0.00012344,2]
[421438095,1777653041000,-167.789875,0.00012419,2]
[421438108,1777653041000,-200.0,0.00013044,2]
[421438110,1777653041000,-171.76514832,0.00013233,14]
[421438097,1777653041000,-167.789875,0.00012419,41]
[421438115,1777653041000,-454.0024088,0.00013599,2]
[421438098,1777653041000,-167.789875,0.00012419,80]
[421438114,1777653041000,-2351.0,0.00013579,2]
[421438102,1777653041000,-720.0,0.00012591,2]
[421438112,1777653041000,-587.0,0.00013545,2]
[421438100,1777653041000,-167.789875,0.00012419,119]
[421438196,1777653042000,-164.55627621,0.00014328,2]
[421438187,1777653042000,-500.0,0.00013849,2]
[421438180,1777653042000,-500.0,0.00013849,2]
[421438193,1777653042000,-367.78449315,0.0001417,2]
[421438194,1777653042000,-267.15462114,0.0001431,2]
[421438185,1777653042000,-500.0,0.00013849,2]
[421438200,1777653042000,-500.0,0.00014355,2]
[421438205,1777653042000,-427.77432689,0.00014355,2]
[421438208,1777653042000,-4303.0936979,0.0001463,2]
[421438216,1777653042000,-2556.0,0.00014936,2]
[421438210,1777653042000,-278.880983,0.0001463,2]
[421438202,1777653042000,-500.0,0.00014355,2]
[421438206,1777653042000,-213.8616046,0.0001463,2]
[421438212,1777653042000,-3405.1424247,0.0001463,2]
[421438214,1777653042000,-823.0,0.00014881,2]
[421438191,1777653042000,-864.0,0.0001385,2]
[421438198,1777653042000,-500.0,0.00014355,2]
[421438189,1777653042000,-500.0,0.00013849,2]
[421438160,1777653042000,-168.7942923,0.00013849,2]
[421438176,1777653042000,-500.0,0.00013849,2]
[421438147,1777653042000,-556.7856988,0.00013849,2]
[421438158,1777653042000,-500.0,0.00013849,2]
[421438162,1777653042000,-500.0,0.00013849,2]
[421438164,1777653042000,-500.0,0.00013849,2]
[421438218,1777653042000,-180.499638,0.00015068,2]
[421438152,1777653042000,-276.34174056,0.00013849,2]
[421438166,1777653042000,-500.0,0.00013849,2]
[421438148,1777653042000,-500.0,0.00013849,2]
[421438151,1777653042000,-500.0,0.00013849,2]
[421438156,1777653042000,-225.58387787,0.00013849,2]
[421438154,1777653042000,-500.0,0.00013849,2]
[421438168,1777653042000,-500.0,0.00013849,2]
[421438170,1777653042000,-500.0,0.00013849,2]
[421438172,1777653042000,-500.0,0.00013849,2]
[421438181,1777653042000,-465.25408757,0.00013849,2]
[421438178,1777653042000,-442.26606725,0.00013849,2]
[421438183,1777653042000,-500.0,0.00013849,2]
[421438174,1777653042000,-500.0,0.00013849,2]
[421438220,1777653042000,-1000.0,0.00015235,2]
[421438249,1777653042000,-854.997738,0.00017204,2]
[421438230,1777653042000,-410.77229105,0.0001617,2]
[421438270,1777653042000,-495.46432241,0.00017337,2]
[421438272,1777653042000,-500.0,0.00017337,2]
[421438278,1777653042000,-261.78168185,0.00017337,2]
[421438267,1777653042000,-214.4235021,0.00017337,2]
[421438276,1777653042000,-500.0,0.00017337,2]
[421438274,1777653042000,-500.0,0.00017337,2]
[421438282,1777653042000,-152.0,9.438e-05,7]
[421438269,1777653042000,-500.0,0.00017337,2]
[421438284,1777653042000,-238.21831815,0.00017337,2]
[421438296,1777653042000,-3470.0,0.000174,2]
[421438294,1777653042000,-1265.60773613,0.000174,2]
[421438292,1777653042000,-600.0,0.00017337,2]
[421438288,1777653042000,-61.56266613,0.00017337,2]
[421438290,1777653042000,-438.43733387,0.00017337,2]
[421438298,1777653042000,-3342.62480947,0.000174,2]
[421438299,1777653042000,-5270.99354352,0.000174,2]
[421438286,1777653042000,-500.0,0.00017337,2]
[421438265,1777653042000,-500.0,0.00017337,2]
[421438263,1777653042000,-102.00910459,0.00017337,2]
[421438252,1777653042000,-500.0,0.00017337,2]
[421438231,1777653042000,-1152.0,0.00016349,2]
[421438235,1777653042000,-1008.33,0.00016438,5]
[421438233,1777653042000,-204.25,0.00016423,2]
[421438239,1777653042000,-4303.0936979,0.00016749,2]
[421438237,1777653042000,-4000.0,0.00016712,2]
[421438243,1777653042000,-244.0,0.00016759,2]
[421438241,1777653042000,-1000.0,0.00016759,2]
[421438224,1777653042000,-179.97115442,0.00015549,2]
[421438228,1777653042000,-160.6162903,0.00016044,2]
[421438226,1777653042000,-164.55627619,0.00015819,2]
[421438247,1777653042000,-213.8616046,0.00017054,2]
[421438245,1777653042000,-278.880983,0.00016963,2]
[421438254,1777653042000,-500.0,0.00017337,2]
[421438250,1777653042000,-164.55627619,0.00017309,2]
[421438259,1777653042000,-397.99089541,0.00017337,2]
[421438257,1777653042000,-500.0,0.00017337,2]
[421438256,1777653042000,-592.05862398,0.00017337,2]
[421438222,1777653042000,-359.9280144,0.00015294,2]
[421438328,1777653043000,-152.0,0.00011225,7]
[421438330,1777653043000,-152.0,0.00011225,7]
[421438329,1777653043000,-152.0,0.00011225,7]
[421438331,1777653044000,-8158.14716759,0.000174,2]
[421438344,1777653046000,1740.38670354,0.0001,2]
[421438356,1777653049000,2486.60016007,7.6e-05,2]
[421438512,1777654232000,-4410.79514364,8.27e-05,2]
[421438519,1777654232000,-142.73345416,8.438e-05,2]
[421438515,1777654232000,-359.8712014,8.354e-05,2]
[421438514,1777654232000,-4640.1287986,8.354e-05,2]
[421438610,1777654238000,-720.0,0.00013463,2]
[421438607,1777654238000,-286.63211724,0.00012439,2]
[421438612,1777654238000,-500.0,0.00013698,2]
[421438602,1777654238000,-300.0,0.0001021,2]
[421438606,1777654238000,-600.0,0.00012239,2]
[421438605,1777654238000,-151.0,0.00012123,2]
[421438604,1777654238000,-52173.73003647,0.00012,2]
[421438597,1777654238000,-1021.44622949,8.439e-05,2]
[421438598,1777654238000,-420.0,9.282e-05,2]
[421438599,1777654238000,-3125.63975254,9.425e-05,2]
[421438608,1777654238000,-151.0,0.00012597,2]
[421438600,1777654238000,-4323.43049883,0.0001,2]
[421438595,1777654238000,-300.0,8.438e-05,2]
[421438596,1777654238000,-210.75890973,8.439e-05,2]
[421438594,1777654238000,-395.26654584,8.438e-05,2]
[421438603,1777654238000,-248.69551349,0.00010439,2]
[421438609,1777654238000,-179.97115442,0.000129,2]
[421438601,1777654238000,-300.0,0.00010097,2]
[421438614,1777654238000,-500.0,0.00013698,2]
[421438632,1777654238000,-180.499638,0.00015068,2]
[421438611,1777654238000,-164.55627619,0.00013598,2]
[421438631,1777654238000,-1885.36493239,0.00014969,2]
[421438626,1777654238000,-935.03944777,0.00014175,2]
[421438629,1777654238000,-864.0,0.00014809,2]
[421438625,1777654238000,-28992.45397037,0.00014,15]
[421438620,1777654238000,-500.0,0.00013999,2]
[421438621,1777654238000,-229.361105,0.00013999,2]
[421438628,1777654238000,-324.56872099,0.00014439,2]
[421438623,1777654238000,-3689.52907347,0.00014,15]
[421438619,1777654238000,-500.0,0.00013998,2]
[421438622,1777654238000,-23086.96081243,0.00014,15]
[421438618,1777654238000,-1000.0,0.00013699,2]
[421438616,1777654238000,-500.0,0.00013698,2]
[421438617,1777654238000,-427.498869,0.00013699,2]
[421438613,1777654238000,-545.08,0.00013698,2]
[421438615,1777654238000,-500.0,0.00013698,2]
[421438680,1777654239000,-187.76795383,0.00018,2]
[421438684,1777654239000,-151.0,0.00018015,2]
[421438685,1777654239000,-229.49297741,0.00018082,30]
[421438681,1777654239000,-11608.83924094,0.00018,2]
[421438678,1777654239000,-244.0,0.00017919,2]
[421438675,1777654239000,-200.68003724,0.000179,2]
[421438668,1777654239000,-681.83373113,0.00017636,21]
[421438676,1777654239000,-2050.0,0.000179,2]
[421438673,1777654239000,-150.04,0.00017817,2]
[421438670,1777654239000,-206.20612117,0.000177,2]
[421438679,1777654239000,-3541.75,0.00017996,2]
[421438677,1777654239000,-1000.0,0.00017919,2]
[421438674,1777654239000,-171.13863413,0.000179,2]
[421438687,1777654239000,-171.13863413,0.000181,2]
[421438683,1777654239000,-109648.82176943,0.00018,7]
[421438686,1777654239000,-1508.0,0.0001809,2]
[421438688,1777654239000,-178.74,0.000181,2]
[421438689,1777654239000,-2465.8271882,0.00018147,2]
[421438691,1777654239000,-251.376,0.00018173,2]
[421438692,1777654239000,-2211.0,0.00018186,2]
[421438694,1777654239000,-1410.0,0.00018186,2]
[421438695,1777654239000,-232.597,0.00018186,2]
[421438693,1777654239000,-646.0,0.00018186,2]
[421438697,1777654239000,-229.49297741,0.00018247,30]
[421438696,1777654239000,-151.0,0.00018214,2]
[421438666,1777654239000,-200.68003724,0.000175,2]
[421438682,1777654239000,-3976.00192688,0.00018,2]
[421438669,1777654239000,-171.13863413,0.000177,2]
[421438655,1777654239000,-180.29,0.00016611,2]
[421438672,1777654239000,-1505.57693935,0.00017745,2]
[421438637,1777654239000,-152.0,0.00015672,7]
[421438636,1777654239000,-170.21,0.00015522,2]
[421438639,1777654239000,-152.0,0.00015697,7]
[421438635,1777654239000,-557.7619663,0.00015382,2]
[421438634,1777654239000,-427.7232092,0.00015382,2]
[421438633,1777654239000,-488.2379289,0.00015382,2]
[421438641,1777654239000,-152.0,0.00015713,7]
[421438643,1777654239000,-152.0,0.00015713,7]
[421438698,1777654239000,-504.12584824,0.00018258,5]
[421438656,1777654239000,-2795.44152182,0.00016701,21]
[421438653,1777654239000,-150.04,0.0001646,2]
[421438654,1777654239000,-2157.49965106,0.00016558,2]
[421438658,1777654239000,-2795.44152182,0.00016809,21]
[421438664,1777654239000,-171.13863413,0.000175,2]
[421438657,1777654239000,-150.04,0.00016789,2]
[421438649,1777654239000,-175.11,0.00016311,2]
[421438644,1777654239000,-2003.3358826,0.00015764,2]
[421438650,1777654239000,-200.0,0.00016423,2]
[421438651,1777654239000,-362.50532474,0.00016439,2]
[421438648,1777654239000,-1000.0,0.0001629,2]
[421438646,1777654239000,-150.04,0.00016137,2]
[421438660,1777654239000,-2311.66341963,0.00017353,2]
[421438662,1777654239000,-160.0,0.00017449,2]
[421438663,1777654239000,-150.04,0.00017467,2]
[421438665,1777654239000,-206.20612117,0.000175,2]
[421438667,1777654239000,-200.58539145,0.000175,2]
[421438661,1777654239000,-5590.88304365,0.00017415,21]
[421438671,1777654239000,-200.68003724,0.000177,2]
[421438659,1777654239000,-150.04,0.00017125,2]
[421438710,1777654239000,-151.0,0.00018484,2]
[421438690,1777654239000,-229.49297741,0.00018164,30]
[421438712,1777654239000,-162.38610595,0.00018484,2]
[421438742,1777654239000,-450.0,0.00019,2]
[421438734,1777654239000,-151.0,0.00018809,2]
[421438732,1777654239000,-229.49297741,0.00018685,30]
[421438739,1777654239000,-2620.62993114,0.00018942,2]
[421438738,1777654239000,-1508.0,0.00018912,2]
[421438736,1777654239000,-160.0,0.00018887,5]
[421438733,1777654239000,-229.49297741,0.00018767,30]
[421438737,1777654239000,-2050.0,0.000189,2]
[421438735,1777654239000,-229.49297741,0.00018877,30]
[421438743,1777654239000,-151.0,0.00019,2]
[421438751,1777654239000,-1185.03656235,0.00019012,2]
[421438747,1777654239000,-191.0,0.00019,2]
[421438750,1777654239000,-151.0,0.00019008,5]
[421438729,1777654239000,-49786.10908053,0.0001862,2]
[421438748,1777654239000,-3707.0,0.00019,2]
[421438745,1777654239000,-151.0,0.00019,2]
[421438749,1777654239000,-6000.0,0.00019,2]
[421438756,1777654239000,-172.366858,0.00019178,2]
[421438754,1777654239000,-500.0,0.00019073,2]
[421438744,1777654239000,-151.0,0.00019,2]
[421438752,1777654239000,-229.49297741,0.00019041,30]
[421438755,1777654239000,-151.0,0.000191,2]
[421438753,1777654239000,-50985.31,0.00019052,10]
[421438757,1777654239000,-172.366858,0.00019178,2]
[421438758,1777654239000,-172.366858,0.00019178,2]
[421438759,1777654239000,-172.366858,0.00019178,2]
[421438760,1777654239000,-172.366858,0.00019178,2]
[421438700,1777654239000,-2194.800758,0.00018265,7]
[421438746,1777654239000,-921.0,0.00019,2]
[421438731,1777654239000,-240.96550744,0.00018643,2]
[421438761,1777654239000,-151.855334,0.00019178,2]
[421438740,1777654239000,-229.49297741,0.00018959,30]
[421438703,1777654239000,-171.13863413,0.000183,2]
[421438707,1777654239000,-229.49297741,0.00018438,30]
[421438702,1777654239000,-345.54,0.00018289,2]
[421438701,1777654239000,-4229.601516,0.00018265,7]
[421438699,1777654239000,-160.0,0.00018265,7]
[421438706,1777654239000,-151.0,0.00018412,2]
[421438711,1777654239000,-151.0,0.00018484,2]
[421438741,1777654239000,-42635.71642071,0.00018998,2]
[421438704,1777654239000,-229.49297741,0.00018329,30]
[421438705,1777654239000,-1508.0,0.00018364,2]
[421438709,1777654239000,-200.0,0.00018484,2]
[421438713,1777654239000,-229.49297741,0.00018521,30]
[421438717,1777654239000,-241.58627929,0.00018575,3]
[421438716,1777654239000,-953.755873,0.00018522,7]
[421438708,1777654239000,-400.44192849,0.00018439,2]
[421438715,1777654239000,-556.877936,0.00018522,7]
[421438718,1777654239000,-229.49297741,0.00018603,30]
[421438730,1777654239000,-1508.0,0.00018638,2]
[421438726,1777654239000,-160.0,0.00018618,2]
[421438728,1777654239000,-189.79646,0.00018618,2]
[421438724,1777654239000,-3356.906153,0.00018618,2]
[421438725,1777654239000,-6553.812306,0.00018618,2]
[421438727,1777654239000,-174.89823,0.00018618,2]
[421438714,1777654239000,-160.0,0.00018522,7]
[421438723,1777654239000,-160.0,0.00018618,2]
[421438722,1777654239000,-612.632014,0.00018618,7]
[421438721,1777654239000,-386.316007,0.00018618,7]
[421438719,1777654239000,-151.0,0.00018611,2]
[421438720,1777654239000,-160.0,0.00018618,7]
[421438810,1777654240000,-151.855334,0.00019178,2]
[421438798,1777654240000,-151.855334,0.00019178,2]
[421438803,1777654240000,-151.855334,0.00019178,2]
[421438802,1777654240000,-151.855334,0.00019178,2]
[421438812,1777654240000,-151.855334,0.00019178,2]
[421438788,1777654240000,-151.855334,0.00019178,2]
[421438809,1777654240000,-151.855334,0.00019178,2]
[421438813,1777654240000,-151.855334,0.00019178,2]
[421438789,1777654240000,-151.855334,0.00019178,2]
[421438794,1777654240000,-151.855334,0.00019178,2]
[421438790,1777654240000,-151.855334,0.00019178,2]
[421438811,1777654240000,-151.855334,0.00019178,2]
[421438805,1777654240000,-151.855334,0.00019178,2]
[421438824,1777654240000,-151.855334,0.00019178,2]
[421438806,1777654240000,-151.855334,0.00019178,2]
[421438800,1777654240000,-151.855334,0.00019178,2]
[421438807,1777654240000,-151.855334,0.00019178,2]
[421438821,1777654240000,-151.855334,0.00019178,2]
[421438823,1777654240000,-151.855334,0.00019178,2]
[421438822,1777654240000,-151.855334,0.00019178,2]
[421438825,1777654240000,-151.855334,0.00019178,2]
[421438816,1777654240000,-151.855334,0.00019178,2]
[421438826,1777654240000,-151.855334,0.00019178,2]
[421438815,1777654240000,-151.855334,0.00019178,2]
[421438819,1777654240000,-151.855334,0.00019178,2]
[421438817,1777654240000,-151.855334,0.00019178,2]
[421438793,1777654240000,-151.855334,0.00019178,2]
[421438804,1777654240000,-151.855334,0.00019178,2]
[421438791,1777654240000,-151.855334,0.00019178,2]
[421438771,1777654240000,-151.855334,0.00019178,2]
[421438787,1777654240000,-151.855334,0.00019178,2]
[421438814,1777654240000,-151.855334,0.00019178,2]
[421438767,1777654240000,-151.855334,0.00019178,2]
[421438769,1777654240000,-151.855334,0.00019178,2]
[421438766,1777654240000,-151.855334,0.00019178,2]
[421438768,1777654240000,-151.855334,0.00019178,2]
[421438764,1777654240000,-151.855334,0.00019178,2]
[421438765,1777654240000,-151.855334,0.00019178,2]
[421438763,1777654240000,-151.855334,0.00019178,2]
[421438762,1777654240000,-151.855334,0.00019178,2]
[421438770,1777654240000,-151.855334,0.00019178,2]
[421438772,1777654240000,-151.855334,0.00019178,2]
[421438783,1777654240000,-151.855334,0.00019178,2]
[421438774,1777654240000,-151.855334,0.00019178,2]
[421438776,1777654240000,-151.855334,0.00019178,2]
[421438778,1777654240000,-151.855334,0.00019178,2]
[421438773,1777654240000,-151.855334,0.00019178,2]
[421438782,1777654240000,-151.855334,0.00019178,2]
[421438775,1777654240000,-151.855334,0.00019178,2]
[421438777,1777654240000,-151.855334,0.00019178,2]
[421438781,1777654240000,-151.855334,0.00019178,2]
[421438779,1777654240000,-151.855334,0.00019178,2]
[421438780,1777654240000,-151.855334,0.00019178,2]
[421438785,1777654240000,-151.855334,0.00019178,2]
[421438795,1777654240000,-151.855334,0.00019178,2]
[421438796,1777654240000,-151.855334,0.00019178,2]
[421438797,1777654240000,-151.855334,0.00019178,2]
[421438784,1777654240000,-151.855334,0.00019178,2]
[421438786,1777654240000,-151.855334,0.00019178,2]
[421438818,1777654240000,-151.855334,0.00019178,2]
[421438792,1777654240000,-151.855334,0.00019178,2]
[421438828,1777654240000,-151.855334,0.00019178,2]
[421438863,1777654240000,-152.753084,0.00019178,2]
[421438859,1777654240000,-152.753084,0.00019178,2]
[421438855,1777654240000,-152.753084,0.00019178,2]
[421438858,1777654240000,-152.753084,0.00019178,2]
[421438861,1777654240000,-152.753084,0.00019178,2]
[421438860,1777654240000,-152.753084,0.00019178,2]
[421438862,1777654240000,-152.753084,0.00019178,2]
[421438867,1777654240000,-152.753084,0.00019178,2]
[421438866,1777654240000,-152.753084,0.00019178,2]
[421438880,1777654240000,-152.753084,0.00019178,2]
[421438878,1777654240000,-152.753084,0.00019178,2]
[421438877,1777654240000,-152.753084,0.00019178,2]
[421438871,1777654240000,-152.753084,0.00019178,2]
[421438879,1777654240000,-152.753084,0.00019178,2]
[421438868,1777654240000,-152.753084,0.00019178,2]
[421438869,1777654240000,-152.753084,0.00019178,2]
[421438874,1777654240000,-152.753084,0.00019178,2]
[421438876,1777654240000,-152.753084,0.00019178,2]
[421438875,1777654240000,-152.753084,0.00019178,2]
[421438881,1777654240000,-152.753084,0.00019178,2]
[421438888,1777654240000,-152.753084,0.00019178,2]
[421438883,1777654240000,-152.753084,0.00019178,2]
[421438885,1777654240000,-152.753084,0.00019178,2]
[421438887,1777654240000,-152.753084,0.00019178,2]
[421438889,1777654240000,-152.753084,0.00019178,2]
[421438891,1777654240000,-152.753084,0.00019178,2]
[421438820,1777654240000,-151.855334,0.00019178,2]
[421438857,1777654240000,-152.753084,0.00019178,2]
[421438853,1777654240000,-152.753084,0.00019178,2]
[421438873,1777654240000,-152.753084,0.00019178,2]
[421438865,1777654240000,-152.753084,0.00019178,2]
[421438856,1777654240000,-152.753084,0.00019178,2]
[421438829,1777654240000,-151.855334,0.00019178,2]
[421438838,1777654240000,-152.753084,0.00019178,2]
[421438831,1777654240000,-152.753084,0.00019178,2]
[421438830,1777654240000,-151.855334,0.00019178,2]
[421438833,1777654240000,-152.753084,0.00019178,2]